Cogmind - Beta 15 @@@ ROGUE MODE // 2025.08.31 @ 20:58:25 Player: MadBadger Result: Destroyed by Y-45 Defender with Heavy Assault Rifle Performance ------------- Evolutions (1) 500 Regions Visited (3) 600 Robots Destroyed (43) 215 Value Destroyed (925) 925 Prototype IDs (1) 20 Alien Tech Used (0) 0 Bonus (0) 0 TOTAL SCORE: 2260 Bonus ------- None Cogmind --------- Core Integrity 0/400 Matter 216/300 Energy 100/100 System Corruption 1% Temperature Cool (77) Movement Treading (240) Ox1 Location -9/Storage Parts ------- > --- POWER (1) -------- (None) > --- PROPULSION (3) --- Light Treads Light Treads > --- UTILITY (3) ------ High-capacity Storage Unit Visual Processing Unit Improved Targeting Computer > --- WEAPON (2) ------- Particle Gun > --- INVENTORY (20) --- Light Ion Engine Compact Wheel Light Armor Plating Small Laser Light Assault Rifle Light Assault Rifle Grenade Launcher Mining Laser Peak State ------------ > --- POWER ------------ Ion Engine > --- PROPULSION ------- Aluminum Leg Aluminum Leg Aluminum Leg > --- UTILITY ---------- High-capacity Storage Unit Visual Processing Unit Improved Targeting Computer > --- WEAPON ----------- Heavy Assault Rifle Improved Light Cannon > --- INVENTORY -------- Light Ion Engine Light Treads Compact Wheel Small Laser Particle Gun Light Assault Rifle Light Assault Rifle Grenade Launcher Mini Grenade Launcher Mining Laser [Rating: 14] Favorites ----------- Power Ion Engine Engine Ion Engine Propulsion Aluminum Leg Treads Light Treads Leg Aluminum Leg Wheel Compact Wheel Flight Unit Flight Unit Utility High-capacity Storage Unit Device Structural Scanner Storage High-capacity Storage Unit Processor Visual Processing Unit Protection Light Armor Plating Weapon Light Assault Rifle Energy Gun EM Shotgun Ballistic Gun Light Assault Rifle Ballistic Cannon Improved Light Cannon Launcher Mini Grenade Launcher Build | -11 -10 -9 -9 ------- Run | Yrd Mat Mat Sto Slots Evolved 2 | . . 2 . Power . | . . . . Propulsion 1 | . . 1 . Utility 1 | . . 1 . Weapon . | . . . . Parts Attached 34 | 7 10 14 3 Power 4 | 2 . 2 . Engine 4 | 2 . 2 . Core . | . . . . Reactor . | . . . . Propulsion 12 | 2 3 6 1 Treads 4 | 2 1 . 1 Leg 5 | . 2 3 . Wheel 1 | . . 1 . Hover . | . . . . Flight 2 | . . 2 . Utility 7 | 1 5 1 . Device 1 | . 1 . . Storage 3 | 1 2 . . Processor 2 | . 1 1 . Hackware . | . . . . Protection 1 | . 1 . . Artifact . | . . . . Weapon 11 | 2 2 5 2 Energy Gun 5 | . 2 2 1 Energy Cannon . | . . . . Ballistic Gun 4 | 2 . 2 . Ballistic Cannon 1 | . . 1 . Launcher 1 | . . . 1 Special Weapon . | . . . . Impact Weapon . | . . . . Slashing Weapon . | . . . . Piercing Weapon . | . . . . Special Melee Weapon . | . . . . Unidentified Prototypes 1 | . . 1 . Corrupted Parts 1 | . . 1 . System Corruption 1 | . . 1 . Parts Lost 21 | . 7 7 7 Power 3 | . 1 1 1 Propulsion 7 | . 2 2 3 Utility 2 | . 2 . . Weapon 9 | . 2 4 3 Highest Loss Streak 4 | . 4 2 4 To Critical Strikes . | . . . . Average Backups 6 | 2 6 8 10 Power . | . 1 1 1 Propulsion 1 | 1 1 1 1 Utility . | . . . . Weapon 4 | . 3 4 6 Tool/Special . | . . . . Unused Backups 7 | . 2 . 5 Power . | . . . . Propulsion 2 | . 2 . . Utility 1 | . . . 1 Weapon 4 | . . . 4 Tool/Special . | . . . . Average Slot Usage (%) 74 | . 76 69 85 Engine 6 | . 6 6 8 Treads 5 | . 8 . 3 Leg 18 | . 17 20 20 Device 1 | . 1 . . Storage 12 | . 14 11 11 Processor 7 | . 4 12 22 Protection 1 | . 2 . . Energy Gun 7 | . 8 7 1 Ballistic Gun 10 | . 12 6 9 Ballistic Cannon 2 | . . 4 10 Peak Build Rating 14 | 6 8 14 14 Average Rating 7 | 4 6 9 12 On Entrance 6 | . 6 7 14 Naked Turns . | . . . . Heaviest Build 52 | 12 43 52 52 Greatest Support 40 | 40 40 30 40 Greatest Overweight (x) 16 | . 9 16 15 Average Overweight (x) 1 | . 1 2 1 Largest Inventory Capacity 20 | 8 20 20 20 Average Capacity 17 | 6 16 20 20 Most Carried 11 | 4 8 10 11 Average Carried 6 | 2 6 8 10 Final Capacity 20 | 8 20 20 20 Final Carried 10 | 4 8 10 8 Class Distribution -------------------- 84% | Mutant 15% | Scavenger-Mutant Dominant Class ---------------- Mutant | -10/Materials Mutant | -9/Materials Scavenger-Mutant | -9/Storage Resources | -11 -10 -9 -9 ----------- Run | Yrd Mat Mat Sto Matter Collected 878 | 270 195 336 77 Remotely . | . . . . Salvage Created 1215 | . 520 490 205 Parts 72 | . 32 31 9 Haulers Intercepted . | . . . . Recyclers Shooed . | . . . . Parts Field Recycled . | . . . . Retrieved Matter . | . . . . Parts Self-Destructed . | . . . . Prevented . | . . . . Kills | -11 -10 -9 -9 ------- Run | Yrd Mat Mat Sto Combat Hostiles Destroyed 34 | . 17 10 7 Guns 25 | . 16 6 3 Cannons 6 | . . 4 2 AOE 3 | . 1 . 2 Classes Destroyed 6 | . 4 2 . Builder 2 | . 1 1 . Recycler 2 | . . 2 . Watcher 5 | . 3 2 . Swarmer 17 | . 10 6 1 Grunt 12 | . 7 3 2 Sentry 5 | . . 1 4 Best Kill Streak 4 | . 4 3 3 Combat Bots Only 4 | . 4 3 3 Max Kills in Single Turn 3 | . 2 2 3 Gunslinging 1 | . 1 . . Exploded 2 | . 1 . 2 Melee . | . . . . Uniques/NPCs Destroyed . | . . . . Combat | -11 -10 -9 -9 -------- Run | Yrd Mat Mat Sto Hostile Shots Fired 340 | . 143 76 121 Missed 107 | . 50 21 36 Hits 233 | . 93 55 85 Projectile 233 | . 93 55 85 Critical Strikes 7 | . 2 . 5 Damage Taken 2509 | . 836 590 1083 Core 454 | . 53 134 267 Absorbed by Shields . | . . . . Core Remaining (%) 89 | 100 78 . . Volleys Fired 159 | . 82 51 26 Largest 2 | . 2 2 2 Hottest 98 | . 65 73 98 Shots Fired 264 | . 146 73 45 Gun 224 | . 146 55 23 Cannon 37 | . . 18 19 Launcher 3 | . . . 3 Special . | . . . . Kinetic 228 | . 137 59 32 Thermal 11 | . . 1 10 Explosive 3 | . . . 3 Electromagnetic 22 | . 9 13 . Robot Hit Streak 14 | . 14 5 4 Robot Miss Streak 5 | . 5 4 2 Penetration Max . | . . . . Secondary Targets 2 | . 2 . . Max Gunslinging Chain 1 | . 1 . . Shots Hit Robots 158 | . 94 39 25 Core Hits 71 | . 38 19 14 Critical Kills . | . . . . Critical Parts Destroyed . | . . . . Critical Strikes 1 | . . . 1 Blast 1 | . . . 1 Melee Attacks . | . . . . Impact . | . . . . Slashing . | . . . . Piercing . | . . . . Sneak Attacks . | . . . . Combat Hostiles . | . . . . Follow-up Attacks . | . . . . Damage Inflicted 2267 | . 919 734 614 Guns 1513 | . 826 475 212 Cannons 358 | . . 154 204 Explosions 348 | . 67 83 198 Melee . | . . . . Ramming 48 | . 26 22 . Kinetic 1483 | . 693 492 298 Thermal 278 | . 67 93 118 Explosive 198 | . . . 198 Electromagnetic 260 | . 133 127 . Impact . | . . . . Slashing . | . . . . Piercing . | . . . . Highest Corruption 1 | . . 1 1 Average Corruption 1 | . . 1 1 Corruption Purged . | . . . . Corruption Blocked . | . . . . Effects 7 | . . 5 2 Message Errors 1 | . . . 1 Matter Fused 3 | . . 2 1 Data Loss (major) 1 | . . 1 . Misfires 2 | . . 2 . Overload Shots . | . . . . Overflow Damage 3 | . . 3 . Projectiles . | . . . . Explosions 3 | . . 3 . Melee . | . . . . Knockbacks 2 | . . 1 1 Impact . | . . . . Kinetic 2 | . . 1 1 Secondary . | . . . . Self-Inflicted Damage 50 | . 14 36 . Shots 2 | . 1 1 . Rammed 2 | . 1 1 . Targets Rammed 13 | . 7 6 . Kicked 10 | . 5 5 . Crushed 1 | . 1 . . Highest Temperature 122 | . 74 14 122 Average Temperature 17 | . 12 8 35 Received Heat Transfer 822 | . 210 195 417 Siege Activations . | . . . . Martial Activations . | . . . . Shielding Activations . | . . . . Robots Disrupted . | . . . . Combat Hostiles . | . . . . Robots Corrupted . | . . . . Combat Hostiles . | . . . . Parts Fried 2 | . 1 1 . Impact Corruptions . | . . . . Robots Melted . | . . . . Combat Hostiles . | . . . . Parts Melted 1 | . . . 1 Heat Transferred 484 | . 100 125 259 Parts Sabotaged . | . . . . Parts Stolen . | . . . . Parts Stripped . | . . . . Power Chain Reactions 2 | . 1 1 . Alert | -11 -10 -9 -9 ------- Run | Yrd Mat Mat Sto Maximum Alert Level . | . . . . Low Security (%) 100 | 100 100 100 100 Level 1 . | . . . . Level 2 . | . . . . Level 3 . | . . . . Level 4 . | . . . . Level 5 . | . . . . High Security . | . . . . Max Security . | . . . . Peak Influence 143 | . 101 77 143 Initial 28 | . . . 28 Average 17 | . 18 15 21 Influence Increases 1064 | . 500 325 239 Destroy 0b10 Robot/C 680 | . 340 200 140 Destroy 0b10 Robot/NC 45 | . 20 25 . Destroy Leader 170 | . 76 34 60 Disable Machine 30 | . . 15 15 Destroy Structure 34 | . 4 6 24 Partial Spotted 15 | . 15 . . Lose Combat Pursuer 90 | . 45 45 . Influence Decreases 941 | . 500 256 185 Entered New Map 41 | . . . 41 Time Decay 748 | . 440 209 99 Lost Part 152 | . 60 47 45 Squads Dispatched 5 | . 3 . 2 Investigation 3 | . 2 . 1 Extermination . | . . . . Reinforcement 1 | . 1 . . Assault . | . . . . Garrison 1 | . . . 1 Intercept . | . . . . Searches Triggered . | . . . . Construction Impeded . | . . . . Haulers Reinforced . | . . . . Active Scanning Responses . | . . . . Cargo Convoy Interrupts . | . . . . Stealth | -11 -10 -9 -9 --------- Run | Yrd Mat Mat Sto Distress Signals 4 | . 2 2 . Communications Jammed . | . . . . Distress Signals . | . . . . Times Spotted 61 | . 33 17 11 Peak Tracking Total 8 | . 5 5 8 Tactical Retreats 4 | . 2 2 . Traps | -11 -10 -9 -9 ------- Run | Yrd Mat Mat Sto Traps Triggered 3 | . 2 . 1 Indirectly . | . . . . Trap Hack Attempts . | . . . . Triggered . | . . . . Disarmed . | . . . . Reprogrammed . | . . . . Reused . | . . . . Traps Extracted . | . . . . Installed . | . . . . Triggered . | . . . . Machines | -11 -10 -9 -9 ---------- Run | Yrd Mat Mat Sto Machines Disabled 2 | . . 1 1 Max in Single Turn 1 | . . 1 1 Machines Repaired . | . . . . Machines Dismantled . | . . . . Machines Sabotaged . | . . . . Overloaded Fab Kills . | . . . . Hacking | -11 -10 -9 -9 --------- Run | Yrd Mat Mat Sto Machines Accessed 1 | . 1 . . Terminals 1 | . 1 . . Fabricators . | . . . . Repair Stations . | . . . . Recycling Units . | . . . . Scanalyzers . | . . . . Garrison Access . | . . . . Total Hacks 1 | . 1 . . Successful 1 | . 1 . . Failed . | . . . . Catastrophic . | . . . . Database Lockouts . | . . . . Manual 1 | . 1 . . Terminals 1 | . 1 . . Fabricators . | . . . . Repair Stations . | . . . . Recycling Units . | . . . . Scanalyzers . | . . . . Garrison Access . | . . . . Terminal Hacks 1 | . 1 . . Locate Traps 1 | . 1 . . Fabricator Hacks . | . . . . Repair Station Hacks . | . . . . Recycling Unit Hacks . | . . . . Scanalyzer . | . . . . Garrison Access Hacks . | . . . . Unauthorized Hacks . | . . . . Terminals . | . . . . Fabricators . | . . . . Repair Stations . | . . . . Recycling Units . | . . . . Scanalyzers . | . . . . Garrison Access . | . . . . Data Cores Recovered . | . . . . Used . | . . . . Hacking Detections . | . . . . Full Trace Events . | . . . . Feedback Events . | . . . . Feedback Blocked . | . . . . Robot Schematics Acquired . | . . . . Robots Built . | . . . . Authchips . | . . . . Time . | . . . . Total Robot Build Rating . | . . . . Part Schematics Acquired . | . . . . Parts Built . | . . . . Authchips . | . . . . Time . | . . . . Total Part Build Rating . | . . . . Parts Repaired . | . . . . Time . | . . . . Parts Recycled . | . . . . Recycled Matter . | . . . . Retrieved Matter . | . . . . Retrieved Components . | . . . . Parts Scanalyzed . | . . . . Part Schematics Acquired . | . . . . Parts Damaged . | . . . . Bothacking | -11 -10 -9 -9 ------------ Run | Yrd Mat Mat Sto Used RIF Installer . | . . . . Robots Hacked . | . . . . Non-combat . | . . . . Combat . | . . . . Robot Hacks Applied . | . . . . Relay Couplers Released . | . . . . Fabnet Peak Effective % . | . . . . Robots Rewired . | . . . . Allies Hacked . | . . . . Hacks Repelled . | . . . . Allies | -11 -10 -9 -9 -------- Run | Yrd Mat Mat Sto Total Allies . | . . . . Largest Group . | . . . . Highest-Rated Group . | . . . . Highest-Rated Ally . | . . . . Total Orders . | . . . . Ally Attacks . | . . . . Total Damage . | . . . . Kills . | . . . . Allies Corrupted . | . . . . Allies Melted . | . . . . Intel | -11 -10 -9 -9 ------- Run | Yrd Mat Mat Sto Active Infowar (turns) 3177 | . 1333 1522 322 Optics 2782 | . 938 1522 322 Structural 395 | . 395 . . Robot Analysis Total . | . . . . Derelict Logs Recovered . | . . . . Drone Launches . | . . . . Drone Recoveries . | . . . . Exploration | -11 -10 -9 -9 ------------- Run | Yrd Mat Mat Sto Turns Passed 5228 | 112 3272 1522 322 Spaces Moved 2126 | 68 1406 548 104 Core 60 | 8 37 13 2 Treads 590 | 60 523 . 7 Legs 1416 | . 846 475 95 Wheels 57 | . . 57 . Hover . | . . . . Flight 3 | . . 3 . Fastest Speed 50 | 50 160 130 190 Average Speed 220 | 147 213 241 236 Slowest Speed 920 | 160 500 920 800 Overloaded Moves . | . . . . Propulsion Burnouts . | . . . . Robots Hopped . | . . . . Potential Cave-ins . | . . . . Cave-ins Triggered . | . . . . Exploration Rate (%) 39 | 5 98 30 23 Regions Visited 3 Branch Regions 1 Pre-discovered Areas . | . . . . Known Exits Taken . | . . . . Unknown Exits Taken 3 | 1 1 1 . Scrap Searched . | . . . . Spaces Dug . | . . . . Terrain Destroyed 45 | . 3 5 37 Melee . | . . . . Projectile 2 | . . 1 1 AOE 43 | . 3 4 36 Terrain Rammed . | . . . . Walls Destroyed . | . . . . Machines Disabled . | . . . . Actions | -11 -10 -9 -9 --------- Run | Yrd Mat Mat Sto Total 2417 | 77 1547 658 135 Wait 56 | . 31 25 . Move 2123 | 67 1405 547 104 Hop . | . . . . Pick Up 13 | 3 5 4 1 Fast Attach 28 | 6 8 13 1 Attach 8 | . 2 3 3 Detach 9 | . 4 5 . Swap 1 | 1 . . . Drop 7 | . 3 4 . Fire 159 | . 82 51 26 Melee . | . . . . Ram 1 | . . 1 . Kick 10 | . 5 5 . Crush 2 | . 2 . . Escape Stasis . | . . . . Rewire . | . . . . Trap . | . . . . Miscellaneous . | . . . . Route ------- -11/Scrapyard -10/Materials (discovered 5 exits: [*Mat x3] / [*Min] / [*Sub]) -9/Materials -9/Storage History --------- Turn | Location | Event 33 | -11/Scrapyard | Discovered new exit (range 14) 113 | -11/Scrapyard | Entered Materials 309 | -10/Materials | Build established: Mutant 628 | -10/Materials | Discovered new exit (range 5) 728 | -10/Materials | Discovered new exit (range 16) 846 | -10/Materials | Discovered new exit (range 12) 1145 | -10/Materials | Lost 3 parts (2n1u) 1382 | -10/Materials | Discovered new exit (range 11) 1682 | -10/Materials | Lost 4 parts (1p1u2w) 1742 | -10/Materials | Discovered new exit (range 8) 3385 | -10/Materials | Entered another Materials area 3385 | -9/Materials | Evolved 2 slots: Propulsion x1, Utility x1 4046 | -9/Materials | Discovered new exit (range 7) 4637 | -9/Materials | Build established: Scavenger-Mutant 4907 | -9/Materials | Entered Storage 5130 | -9/Storage | Garrison activated, responded to threat 5146 | -9/Storage | Core integrity fell below 50% 5198 | -9/Storage | Lost 4 parts (1p2n1w) 5218 | -9/Storage | Core integrity fell below 20% 5229 | -9/Storage | Destroyed by Y-45 Defender with Heavy Assault Rifle Last Messages --------------- 05167_ Hvy. Assault Rifle destroyed. 05170_ Critical hit (Burn: +37). 05175_ Acquired Lgt. Treads. 05179_ R-06 Scavenger collects Welding Torch. 05191_ G-34 Mercenary destroyed. 05197_ Y-45 Defender Heat Sink blasted off. 05198_ Imp. Light Cannon destroyed. 05207_ Critical hit (Burn: +37). 05213_ Y-45 Defender heat spikes uncontrollably. 05217_ Critical hit (Burn: +37). 05218_ Y-45 Defender heat damages Beam Rifle, Lgt. Treads. 05219_ Y-45 Defender heat spikes uncontrollably. 05219_ U-05 Engineer lays Concrete. 05219_ Hvy. Assault Rifle melted. 05219_ Y-45 Defender destroyed. 05219_ G-34 Mercenary destroyed. 05219_ Y-45 Defender destroyed. 05220_ U-05 Engineer lays Concrete. 05223_ Mni. Grenade Launcher destroyed. 05224_ U-05 Engineer lays Concrete. Map ----- +----------------------------------------------------+ | ?????????????????????????????????????????????????? | | ?????????????????????????????????????????????????? | | ?????????????????????????????????????????????????? | | ?????????????????????????????????????????????????? | | ?????????????????????????????????????????????????? | | ?????????????????????????????????????????????????? | | ?????????????????????????????????????????????????? | | ?????????????????????????????????????????????????? | | ?????????????????????????????????????????????????? | | ?????????????????????????????????????????????????? | | #########????????????????????????????????????????? | | # #?????###########?????####???????????????? | | # #?????# #????? ???????????????? | | # ####### #???? ????????????????? | | # # # #???? ????????????????? | | # # # #???? ?????????????????? | | # + + """ """ #??## ##????????????????? | | # # # """ """ #?? ?????????????????? | | # # # """ """ ### ##??????????/#????? | | # ## ## ## Y #???????? #????? | | # ## ###+####+#### ##????? % #????? | | # ## #? ?## ##?# ##?? # # | | ########## #? ?# ### #* % + ??? | | ?????????# # + " % [%Y %== """ ??????? | | ?????????# # """ # ## u ![ ! # """"" ??????? | | ?????????# # """ ######@ = #??"""""???????? | | ?????????# # """ #????# # ##???? ??????? | | ?????????# # #????# ############??????? | | ?????????# #######????# + """ #???????? | | ?????????#####??????????# # """ #???????? | | ?????????????????????######### #%""" #???????? | | ?????????????????????# / + +% #???????? | | ?????????????????????#= ###### ##??????? | | ?????????????????????# = ???????# % #??????? | | ?????????????????????# ?????????#########??????? | | ?????????????????????#!??????????????????????????? | | ?????????????????????????????????????????????????? | | ?????????????????????????????????????????????????? | | | | | | | | | | | | | | | | | | | | | | | | | +----------------------------------------------------+ Best States ------------- Heat Dissipation 28 Energy Generation 10 Energy Capacity 250 Matter Stores 300 Matter Capacity 300 Sight Range 18 Terrain Scan Density 10 Armor Coverage 150 Evasion (%) 40 Targeting Accuracy 6 Recoil Reduction 2 Item Schematics ----------------- None Robot Schematics ------------------ None Fabricated ------------ Nothing Repaired ---------- Nothing Alien Tech Used ----------------- None Achievements -------------- None Challenges ------------ None Game ------ Seed ImprovedProcessingFilter Manual? 0 Play Time 00:23:52 Cumulative 27.2 hours Start 2025.08.31 @ 20:36:24 End 2025.08.31 @ 20:58:25 Sessions 1 Manual Loads 0 Difficulty Rogue Special Mode None Game No. 58 Rogue 58 Adventurer 0 Explorer 0 Win Type - Total 0 Types 0/0/0/0/0/0/0/0/0/0 Lore% 10 Gallery% 16 Achievement% 16 Wizard Run 0 Options --------- Layout 0 ASCII 0 Keyboard 1 Movement Numpad Keybinds 0 Fullscreen 2 Font 24/Smallcaps Map View 76x50 Zoom Use 0% Tactical HUD 1 Map Filters NONE Filters NONE Steam 1 RUN: e78e022c-7447-4898-ae23-0fd9d094429e